bitfinex-derivatives/quotes_BTCF0:USTF0_20241223
["timestamp","ask_amount","ask_price","bid_price","bid_amount"]
[1734983732335,0.3708,93073.0,93070.0,0.053795]
[1734983732538,0.05231283,93072.0,93070.0,0.053795]
[1734983733439,0.05231283,93072.0,93070.0,0.055795]
[1734983733737,0.053795,93071.0,93070.0,0.002]
[1734983733929,0.05231283,93072.0,93070.0,0.003]
[1734983734130,0.05231283,93072.0,93070.0,0.002]
[1734983734734,0.05231283,93072.0,93070.0,0.001]
[1734983734944,0.05231283,93072.0,93071.0,0.053795]
[1734983736136,0.05231283,93072.0,93070.0,0.001]
[1734983736432,0.05231283,93072.0,93067.0,0.053797]
[1734983736633,0.05331283,93072.0,93067.0,0.053797]
[1734983737136,0.05231283,93072.0,93071.0,0.003]
[1734983737629,0.05231283,93072.0,93070.0,0.054795]
[1734983737840,0.05231283,93072.0,93071.0,0.053795]
[1734983738030,0.05231283,93072.0,93070.0,0.001]
[1734983739134,0.05231283,93072.0,93069.0,0.053796]
[1734983739339,0.05231283,93072.0,93071.0,0.004]
[1734983739846,0.05331283,93072.0,93071.0,0.001]
[1734983740344,0.05231283,93072.0,93071.0,0.001]
[1734983741839,0.063805,93052.0,93051.0,0.00309183]
[1734983742145,0.424605,93052.0,93051.0,0.05490852]
[1734983742455,0.053814,93037.0,93036.0,0.05598]
[1734983742643,0.775414,93037.0,93036.0,0.05598]
[1734983743138,0.7216,93037.0,93036.0,0.05598]
[1734983743644,0.7226,93037.0,93036.0,0.05698]
[1734983744042,0.7226,93037.0,93036.0,0.06298]
[1734983744043,0.7236,93037.0,93036.0,0.06298]
[1734983744749,0.77591283,93037.0,93036.0,0.06298]
[1734983745246,0.77491283,93037.0,93036.0,0.06198]
[1734983746245,0.77491283,93037.0,93036.0,0.06098]
[1734983746743,0.77391283,93037.0,93036.0,0.05698]
[1734983747046,0.77391283,93037.0,93020.0,0.0989209]
[1734983747047,0.01,93021.0,93014.0,0.0014]
[1734983747231,0.1955,93020.0,93000.0,0.1989209]
[1734983747636,0.1955,93020.0,93015.0,0.053827]
[1734983749644,0.1955,93020.0,93015.0,0.057827]
[1734983750140,0.1955,93020.0,93015.0,0.053827]
[1734983750346,0.1955,93020.0,93016.0,0.053826]
[1734983750735,0.12739257,93017.0,93016.0,0.053826]
[1734983752137,0.12029039,93025.0,93024.0,0.053822]
[1734983752436,0.10959039,93033.0,93024.0,0.3608]
[1734983752637,0.10959039,93033.0,93031.0,0.053817]
[1734983754151,0.001,93033.0,93031.0,0.057817]
[1734983754650,0.002,93033.0,93032.0,0.3608]
[1734983755242,0.002,93033.0,93031.0,0.11156642]
[1734983755441,0.001,93033.0,93031.0,0.11156642]
[1734983755945,0.01,93034.0,93031.0,0.10756642]
[1734983756245,0.001,93033.0,93031.0,0.11156642]
[1734983756650,0.001,93033.0,93031.0,0.05374942]
[1734983756839,0.01,93034.0,93031.0,0.003]
[1734983758544,0.01,93034.0,93033.0,0.053816]
[1734983760854,0.01,93034.0,93033.0,0.055816]
[1734983761162,0.01,93034.0,93033.0,0.002]
[1734983761454,0.01,93023.0,93018.0,0.053825]
[1734983762151,0.1165,93023.0,93018.0,0.053825]
[1734983762348,0.053824,93020.0,93018.0,0.05347567]
[1734983762551,0.01,93013.0,93000.0,0.1989209]
[1734983762745,0.3608,93011.0,93000.0,0.1989209]
[1734983763146,0.3608,93011.0,93001.0,0.053835]
[1734983763348,0.3608,93011.0,93000.0,0.1989209]
[1734983763754,0.01,93013.0,93012.0,0.053829]
[1734983765249,0.01,93013.0,93012.0,0.056829]
[1734983765645,0.3608,93022.0,93015.0,0.053827]
[1734983765858,0.01,93019.0,93015.0,0.053827]
[1734983766451,0.01,93019.0,93013.0,0.053828]
[1734983766853,0.01,93019.0,93015.0,0.002]
[1734983767058,0.05235854,93018.0,93015.0,0.002]
[1734983767258,0.05235854,93018.0,93013.0,0.053828]
[1734983767459,0.05235854,93018.0,93015.0,0.001]
[1734983768060,0.05235854,93018.0,93015.0,0.002]
[1734983768560,0.05235854,93018.0,93015.0,0.001]
[1734983770762,0.05235854,93018.0,93015.0,0.002]
[1734983770967,0.05235854,93018.0,93015.0,0.001]
[1734983771257,0.05235854,93018.0,93015.0,0.002]
[1734983771764,0.05235854,93018.0,93015.0,0.001]
[1734983772569,0.05235854,93018.0,93017.0,0.053826]
[1734983772761,0.22371099,93034.0,93017.0,0.053826]
[1734983772762,0.22371099,93034.0,93031.0,0.053818]
[1734983773064,0.22371099,93034.0,93033.0,0.053816]
[1734983773661,0.22371099,93034.0,93017.0,0.1056]
[1734983773863,0.3608,93032.0,93017.0,0.15989132]
[1734983774067,0.3608,93032.0,93028.0,0.053819]
[1734983774359,0.01,93031.0,93020.0,0.0989209]
[1734983774566,0.01,93031.0,93030.0,0.053818]
[1734983774957,0.01,93031.0,93021.0,0.201]
[1734983775158,0.19199052,93030.0,93026.0,0.05382]
[1734983775458,0.19199052,93030.0,93029.0,0.053819]
[1734983776162,0.19199052,93030.0,93028.0,0.002]
[1734983777060,0.19199052,93030.0,93020.0,0.0989209]
[1734983777061,0.19199052,93030.0,93029.0,0.055819]
[1734983777458,0.3608,93032.0,93029.0,0.002]
[1734983777657,0.3608,93032.0,93031.0,0.053818]
[1734983779761,0.1057,93036.0,93035.0,0.053815]
[1734983779974,0.1057,93036.0,93031.0,0.002]
[1734983780268,0.3608,93032.0,93031.0,0.002]
[1734983781771,0.3608,93032.0,93031.0,0.056818]
[1734983783568,0.3608,93032.0,93031.0,0.054818]
[1734983783761,0.3608,93032.0,93031.0,0.055818]
[1734983783957,0.01161265,93037.0,93031.0,0.001]
[1734983784165,0.01161265,93037.0,93035.0,0.053815]
[1734983784359,0.00161265,93037.0,93036.0,0.053815]
[1734983784566,0.22371099,93046.0,93045.0,0.05381]
[1734983784762,0.22209834,93046.0,93045.0,0.05381]
[1734983786065,0.19210477,93048.0,93041.0,0.3608]
[1734983786265,0.19210477,93048.0,93047.0,0.053808]
[1734983786771,0.01,93046.0,93041.0,0.3608]
[1734983787068,0.013,93046.0,93043.0,0.05381]
[1734983787270,0.013,93046.0,93045.0,0.05381]
[1734983787479,0.01,93046.0,93045.0,0.05381]
[1734983788064,0.011,93046.0,93045.0,0.05381]
[1734983788972,0.05333776,93046.0,93045.0,0.05381]
[1734983789174,0.05433776,93046.0,93045.0,0.05381]
[1734983789569,0.06333776,93046.0,93045.0,0.05381]
[1734983789769,0.06633776,93046.0,93045.0,0.05381]
[1734983790871,0.05633776,93046.0,93045.0,0.05381]
[1734983791662,0.05633776,93046.0,93045.0,0.10713822]
[1734983793567,0.3748,93046.0,93045.0,0.05332822]
[1734983793772,0.3748,93046.0,93041.0,0.053812]
[1734983793975,0.2059,93045.0,93041.0,0.053812]
[1734983794273,0.2059,93045.0,93042.0,0.053811]
[1734983794988,0.2059,93045.0,93036.0,0.0989209]
[1734983795173,0.2059,93045.0,93043.0,0.053811]
[1734983795377,0.05234144,93044.0,93043.0,0.053811]
[1734983796368,0.05334144,93044.0,93043.0,0.053811]
[1734983797372,0.05434144,93044.0,93043.0,0.053811]
[1734983797773,0.05434144,93044.0,93043.0,0.10643152]
[1734983800371,0.04839801,93044.0,93043.0,0.46723152]
[1734983800671,0.19210477,93052.0,93043.0,0.46723152]
[1734983800874,0.0981,93058.0,93053.0,0.053805]
[1734983801084,0.0981,93058.0,93053.0,0.3608]
[1734983801375,0.0981,93058.0,93057.0,0.053803]
[1734983802174,0.1041,93058.0,93057.0,0.053803]
[1734983802671,0.1061,93058.0,93057.0,0.053803]
[1734983803070,0.1101,93058.0,93057.0,0.053803]
[1734983803470,0.1101,93058.0,93053.0,0.339603]
[1734983803975,0.1101,93058.0,93057.0,0.053803]
[1734983804679,0.1081,93058.0,93057.0,0.053803]
[1734983805980,0.1091,93058.0,93057.0,0.053803]
[1734983806375,0.011,93058.0,93057.0,0.053803]
[1734983808172,0.3608,93069.0,93053.0,0.39449532]
[1734983808370,0.19313803,93077.0,93076.0,0.053792]
[1734983808577,0.11476805,93077.0,93076.0,0.339592]
[1734983808778,0.08359967,93077.0,93076.0,0.393384]
[1734983810079,0.09059967,93077.0,93076.0,0.393384]
[1734983810593,0.007,93077.0,93076.0,0.393384]
[1734983810775,0.16005386,93084.0,93076.0,0.393384]
[1734983810975,0.16005386,93084.0,93083.0,0.053788]
[1734983811377,0.01,93106.0,93083.0,0.3]
[1734983811576,0.01,93106.0,93104.0,0.053775]
[1734983811778,0.01,93095.0,93085.0,0.00161134]
[1734983812088,0.3608,93086.0,93085.0,0.00161134]
[1734983813374,0.3608,93086.0,93076.0,0.15377414]
[1734983813375,0.01,93085.0,93076.0,0.05485324]
[1734983813579,0.3608,93078.0,93077.0,0.053791]
[1734983814180,0.01,93085.0,93070.0,0.0989209]
[1734983814377,0.01,93098.0,93097.0,0.053779]
[1734983814888,0.0994,93104.0,93103.0,0.053776]
[1734983816091,0.1054,93104.0,93103.0,0.054776]
[1734983816291,0.1064,93104.0,93103.0,0.054776]
[1734983818107,0.007,93104.0,93103.0,0.1088949]
[1734983818307,0.007,93104.0,93103.0,0.0338949]
[1734983818501,0.007,93104.0,93102.0,0.3608]
[1734983818805,0.00064,93105.0,93102.0,0.3608]
[1734983818806,0.01,93122.0,93103.0,0.053776]
[1734983819006,0.01,93122.0,93121.0,0.053766]
[1734983819608,0.01,93132.0,93119.0,0.3608]
[1734983819809,0.01,93132.0,93131.0,0.05376]
[1734983820607,0.1007,93133.0,93131.0,0.05376]
[1734983821395,0.12754272,93136.0,93135.0,0.053758]
[1734983822608,0.48834272,93136.0,93131.0,0.05397282]
[1734983822810,0.3608,93136.0,93131.0,0.05297282]
[1734983823007,0.3658,93136.0,93135.0,0.001]
[1734983824009,0.3688,93136.0,93135.0,0.001]
[1734983824306,0.3638,93136.0,93134.0,0.053758]
[1734983824504,0.3718,93136.0,93134.0,0.053758]
[1734983824709,0.011,93136.0,93134.0,0.053758]
[1734983824909,0.003,93136.0,93134.0,0.053758]
[1734983825114,0.009,93136.0,93135.0,0.001]
[1734983825512,0.012,93136.0,93135.0,0.001]
[1734983825710,0.003,93136.0,93134.0,0.053758]
[1734983825914,0.012,93136.0,93134.0,0.054758]
[1734983826808,0.12754272,93160.0,93134.0,0.001]
[1734983827110,0.00139452,93158.0,93154.0,0.053747]
[1734983827316,0.12754272,93160.0,93159.0,0.053744]
[1734983827614,0.1019,93162.0,93161.0,0.053743]
[1734983827999,0.12754272,93166.0,93161.0,0.053743]
[1734983828399,0.12754272,93166.0,93159.0,0.339543]
[1734983828607,0.003,93160.0,93159.0,0.393287]
[1734983828911,0.008,93160.0,93159.0,0.394287]
[1734983829105,0.005,93160.0,93159.0,0.394287]
[1734983829306,0.005,93163.0,93162.0,0.053742]
[1734983829808,0.12754272,93175.0,93161.0,0.001]
[1734983830014,0.12754272,93175.0,93174.0,0.414535]
[1734983830707,0.00161012,93182.0,93174.0,0.414535]
[1734983830915,0.00161012,93182.0,93181.0,0.053731]
[1734983831302,0.1987,93189.0,93188.0,0.053727]
[1734983831716,0.12702924,93192.0,93188.0,0.053727]
[1734983832213,0.12702924,93192.0,93191.0,0.053725]
[1734983832809,0.00139452,93194.0,93193.0,0.053724]
[1734983833311,0.00139452,93194.0,93186.0,0.339524]
[1734983833511,0.00139452,93194.0,93193.0,0.053724]
[1734983834119,0.00439452,93194.0,93193.0,0.053724]
[1734983835220,0.003,93194.0,93193.0,0.053724]
[1734983835421,0.003,93194.0,93193.0,0.054724]
[1734983836127,0.00439452,93194.0,93174.0,0.053735]
[1734983836424,0.3608,93179.0,93170.0,0.0989209]
[1734983836609,0.3608,93179.0,93170.0,0.1526579]
[1734983837613,0.3608,93171.0,93170.0,0.002]
[1734983838417,0.3608,93171.0,93170.0,0.005]
[1734983839415,0.3608,93171.0,93170.0,0.003]
[1734983839720,0.414537,93171.0,93169.0,0.00160977]
[1734983839920,0.414537,93171.0,93170.0,0.002]
[1734983840225,0.414537,93171.0,93140.0,0.053754]
[1734983840226,0.00139452,93158.0,93140.0,0.053754]
[1734983840412,0.3608,93154.0,93153.0,0.10677135]
[1734983840813,0.7216,93154.0,93153.0,0.05302435]
[1734983841013,0.7216,93154.0,93147.0,0.05375]
[1734983841014,0.775347,93154.0,93130.0,0.4611209]
[1734983841210,0.3608,93145.0,93144.0,0.053752]
[1734983841415,0.053754,93142.0,93138.0,0.053755]
[1734983841726,0.00139452,93143.0,93139.0,0.053755]
[1734983842525,0.3608,93142.0,93139.0,0.053755]
[1734983843124,0.1092,93141.0,93139.0,0.053755]
[1734983843422,0.1092,93141.0,93135.0,0.03301882]
[1734983843623,0.1092,93141.0,93137.0,0.053756]
[1734983844326,0.1092,93141.0,93140.0,0.053755]
[1734983846017,0.1102,93141.0,93140.0,0.053755]
[1734983846520,0.1122,93141.0,93140.0,0.053755]
[1734983846724,0.003,93141.0,93140.0,0.053755]
[1734983846924,0.5813,93160.0,93140.0,0.053755]
[1734983846925,0.4667,93160.0,93159.0,0.053744]
[1734983847113,0.4667,93160.0,93134.0,0.3608]
[1734983847318,0.3608,93140.0,93129.0,0.36108]
[1734983847626,0.3608,93140.0,93129.0,0.41594923]
[1734983848726,0.3608,93140.0,93138.0,0.053755]
[1734983849719,0.3608,93140.0,93138.0,0.054755]
[1734983850623,0.3608,93140.0,93138.0,0.055755]
[1734983850830,0.3608,93145.0,93138.0,0.002]
[1734983851029,0.3608,93145.0,93142.0,0.053753]
[1734983851330,0.3608,93149.0,93144.0,0.053752]
[1734983851825,0.3608,93149.0,93138.0,0.002]
[1734983852730,0.3608,93149.0,93147.0,0.05375]
[1734983853924,0.3608,93149.0,93143.0,0.053753]
[1734983854230,0.3608,93149.0,93147.0,0.002]
[1734983854426,0.3608,93149.0,93147.0,0.05675]
[1734983855930,0.3608,93149.0,93147.0,0.05575]
[1734983856430,0.3608,93149.0,93147.0,0.05375]
[1734983857133,0.3608,93149.0,93148.0,0.05375]
[1734983858227,0.4667,93160.0,93159.0,0.053744]
[1734983859631,0.4667,93160.0,93155.0,0.053746]
[1734983859833,0.4667,93160.0,93147.0,0.05487564]
[1734983860136,0.3608,93148.0,93147.0,0.05487564]
[1734983860822,0.3608,93148.0,93147.0,0.001]
[1734983861023,0.41455,93148.0,93147.0,0.003]
[1734983861436,0.41455,93148.0,93147.0,0.002]
[1734983862535,0.41455,93148.0,93142.0,0.05354214]
[1734983862727,0.41455,93148.0,93147.0,0.002]
[1734983862924,0.41655,93148.0,93147.0,0.055751]
[1734983863127,0.46883982,93148.0,93147.0,0.053751]
[1734983863337,0.46883982,93148.0,93147.0,0.057751]
[1734983863633,0.46683982,93148.0,93147.0,0.057751]
[1734983863831,0.46683982,93148.0,93147.0,0.053751]
[1734983864032,0.053753,93143.0,93140.0,0.053754]
[1734983864331,0.41308982,93148.0,93131.0,0.05362598]
[1734983864332,0.4607,93142.0,93131.0,0.05362598]
[1734983864537,0.3608,93132.0,93122.0,0.00144]
[1734983864723,0.3608,93123.0,93113.0,0.0014]
[1734983864930,0.3608,93123.0,93122.0,0.053765]
[1734983865137,0.3608,93123.0,93117.0,0.053768]
[1734983865327,0.3608,93118.0,93117.0,0.053768]
[1734983865637,0.053769,93115.0,93113.0,0.05377]
[1734983866023,0.053774,93108.0,93105.0,0.053775]
[1734983866245,0.3608,93106.0,93105.0,0.10690071]
[1734983866732,0.3608,93118.0,93117.0,0.053768]
[1734983868743,0.3608,93118.0,93117.0,0.056768]
[1734983869037,0.15996976,93119.0,93117.0,0.11134073]
[1734983869634,0.15996976,93119.0,93117.0,0.11334073]
[1734983869935,0.15996976,93119.0,93117.0,0.11034073]
[1734983870133,0.15996976,93127.0,93117.0,0.05957273]
[1734983870337,0.15996976,93127.0,93124.0,0.053764]
[1734983870840,0.15996976,93127.0,93125.0,0.053763]
[1734983871539,0.52076976,93127.0,93125.0,0.053763]
[1734983871740,0.3608,93127.0,93125.0,0.053763]
[1734983872541,0.053767,93120.0,93117.0,0.05857273]
[1734983872738,0.3608,93118.0,93117.0,0.05857273]
[1734983872931,0.3608,93118.0,93098.0,0.36241112]
[1734983873132,0.053774,93106.0,93098.0,0.00301112]
[1734983873434,0.053774,93106.0,93098.0,0.00161112]
[1734983874038,0.3608,93109.0,93101.0,0.053777]
[1734983874342,0.3608,93109.0,93102.0,0.24567792]
[1734983874343,0.414573,93109.0,93102.0,0.24567792]
[1734983874846,0.16001403,93103.0,93102.0,0.05254966]
[1734983875043,0.16001403,93103.0,93102.0,0.007]
[1734983875443,0.16001403,93103.0,93102.0,0.011]
[1734983875643,0.16001403,93103.0,93102.0,0.004]
[1734983875942,0.10606604,93107.0,93102.0,0.006]
[1734983876130,0.10606604,93107.0,93102.0,0.004]
[1734983876332,0.10606604,93107.0,93102.0,0.002]
[1734983876543,0.10606604,93107.0,93102.0,0.003]
[1734983877238,0.05229204,93107.0,93106.0,0.053774]
[1734983877443,0.7216,93109.0,93108.0,0.053773]
[1734983879738,0.7216,93109.0,93108.0,0.057773]
[1734983880247,0.3608,93109.0,93108.0,0.060773]
[1734983880646,0.3608,93109.0,93108.0,0.056773]
[1734983880944,0.3608,93109.0,93108.0,0.061773]
[1734983881449,0.15968162,93117.0,93116.0,0.053769]
[1734983882144,0.3608,93126.0,93108.0,0.0094]
[1734983882145,0.3608,93118.0,93108.0,0.0094]
[1734983882340,0.3608,93109.0,93108.0,0.007]
[1734983882647,0.3608,93109.0,93108.0,0.004]
[1734983882851,0.053778,93101.0,93091.0,0.053783]
[1734983883054,0.3608,93099.0,93092.0,0.053782]
[1734983883544,0.3608,93099.0,93098.0,0.05628786]
[1734983884951,0.3608,93099.0,93098.0,0.05728786]
[1734983885153,0.41311005,93099.0,93098.0,0.05728786]
[1734983885451,0.46688805,93099.0,93098.0,0.00261112]
[1734983886046,0.46788805,93099.0,93098.0,0.00261112]
[1734983886551,0.46788805,93099.0,93098.0,0.00161112]
[1734983886741,0.46888805,93099.0,93098.0,0.00261112]
[1734983886947,0.05378,93096.0,93077.0,0.053791]
[1734983887143,0.3608,93078.0,93077.0,0.053791]
[1734983888148,0.3608,93078.0,93077.0,0.058791]
[1734983888350,0.3608,93078.0,93077.0,0.11177827]
[1734983888846,0.3608,93078.0,93077.0,0.10677827]
[1734983889047,0.3608,93078.0,93077.0,0.05798727]
[1734983889354,0.41459,93078.0,93077.0,0.013]
[1734983889649,0.053793,93073.0,93072.0,0.00161179]
[1734983889951,0.414593,93073.0,93072.0,0.00161179]
[1734983890755,0.414593,93073.0,93072.0,0.00261179]
[1734983891953,0.414593,93073.0,93072.0,0.00361179]
[1734983896542,0.414593,93073.0,93053.0,0.00161207]
[1734983896741,0.3608,93055.0,93054.0,0.053804]
[1734983897754,0.3608,93073.0,93053.0,0.05649132]
[1734983897755,0.4683,93081.0,93053.0,0.05649132]
[1734983898052,0.4683,93081.0,93065.0,0.3608]
[1734983898353,0.15944736,93074.0,93065.0,0.3608]
[1734983898549,0.3608,93073.0,93071.0,0.053794]
[1734983898754,0.3608,93073.0,93072.0,0.053794]
[1734983900748,0.12728935,93076.0,93075.0,0.053792]
[1734983901150,0.12728935,93076.0,93072.0,0.05282794]
[1734983901355,0.12728935,93076.0,93041.0,0.053812]
[1734983901356,0.053797,93066.0,93041.0,0.053812]
[1734983901542,0.3608,93040.0,93032.0,0.053817]
[1734983901742,0.053816,93035.0,93030.0,0.19312826]
[1734983901944,0.053814,93037.0,93035.0,0.053815]
[1734983902149,0.3608,93040.0,93030.0,0.24694626]
[1734983902458,0.053817,93033.0,93030.0,0.24694626]
[1734983902652,0.053817,93033.0,93030.0,0.053818]
[1734983902951,0.053817,93033.0,93031.0,0.053818]
[1734983903455,0.053817,93033.0,93030.0,0.006]
[1734983903653,0.001,93035.0,93032.0,0.053817]
[1734983903853,0.12728935,93039.0,93030.0,0.006]
[1734983904056,0.12717868,93040.0,93031.0,0.3608]
[1734983904250,0.12717868,93040.0,93032.0,0.053817]
[1734983904753,0.12717868,93040.0,93039.0,0.053813]
[1734983905153,0.053808,93048.0,93039.0,0.053813]
[1734983905350,0.053809,93046.0,93040.0,0.053812]
[1734983905551,0.053809,93046.0,93031.0,0.3658]
[1734983905746,0.053809,93046.0,93041.0,0.053812]
[1734983906660,0.164107,93050.0,93040.0,0.001]
[1734983907158,0.1103,93050.0,93049.0,0.053807]
[1734983908356,0.040489,93063.0,93062.0,0.0538]
[1734983908558,0.00324303,93063.0,93062.0,0.4146]
[1734983909451,0.01224303,93063.0,93062.0,0.4156]
[1734983909656,0.3608,93086.0,93062.0,0.4156]
[1734983909657,0.053786,93085.0,93062.0,0.4156]
[1734983909852,0.053786,93085.0,93072.0,0.053794]
[1734983910052,0.053786,93085.0,93073.0,0.053793]
[1734983910363,0.3608,93086.0,93071.0,0.3608]
[1734983910564,0.3608,93086.0,93082.0,0.053788]
[1734983911053,0.1036,93096.0,93079.0,0.3608]
[1734983911253,0.157381,93096.0,93085.0,0.053786]
[1734983912058,0.1036,93096.0,93080.0,0.13625842]
[1734983912453,0.1036,93096.0,93085.0,0.053786]
[1734983912857,0.1046,93096.0,93085.0,0.053786]
[1734983913359,0.1036,93096.0,93085.0,0.053786]
[1734983913863,0.053782,93093.0,93085.0,0.053786]
[1734983914261,0.053782,93093.0,93086.0,0.053786]
[1734983914456,0.053782,93093.0,93080.0,0.13625842]
[1734983914655,0.1046,93096.0,93080.0,0.13625842]
[1734983914849,0.1046,93096.0,93090.0,0.053783]
[1734983915058,0.15838,93096.0,93090.0,0.053783]
[1734983915455,0.15738,93096.0,93090.0,0.053783]
[1734983915655,0.053782,93094.0,93090.0,0.053783]
[1734983917267,0.053782,93094.0,93091.0,0.053782]
[1734983917458,0.1046,93096.0,93093.0,0.053782]
[1734983917651,0.1036,93096.0,93094.0,0.053781]
[1734983917857,0.1036,93096.0,93095.0,0.053781]
[1734983918564,0.1056,93096.0,93095.0,0.053781]
[1734983919465,0.1106,93096.0,93095.0,0.053781]
[1734983921468,0.053781,93095.0,93090.0,0.053783]
[1734983921663,0.053781,93095.0,93080.0,0.13625842]
[1734983921867,0.053781,93095.0,93091.0,0.053783]
[1734983922062,0.053781,93095.0,93092.0,0.053782]
[1734983922268,0.4714,93096.0,93085.0,0.053786]
[1734983922571,0.053789,93082.0,93070.0,0.13625842]
[1734983922872,0.053789,93081.0,93079.0,0.05379]
[1734983923067,0.053789,93081.0,93080.0,0.053789]
[1734983925770,0.053789,93081.0,93080.0,0.054789]
[1734983925976,0.053789,93081.0,93080.0,0.055789]
[1734983926156,0.053789,93081.0,93080.0,0.054789]
[1734983926465,0.055789,93081.0,93080.0,0.054789]
[1734983926772,0.19133683,93084.0,93082.0,0.053788]
[1734983927274,0.19133683,93084.0,93083.0,0.053788]
[1734983927965,0.19133683,93084.0,93076.0,0.3608]
[1734983927966,0.60592083,93089.0,93088.0,0.053785]
[1734983928169,0.55213683,93089.0,93070.0,0.05412285]
[1734983928363,0.55213683,93089.0,93068.0,0.3608]
[1734983928364,0.3608,93080.0,93068.0,0.3608]
[1734983928559,0.05379,93079.0,93077.0,0.053791]
[1734983928767,0.3608,93080.0,93068.0,0.41355565]
[1734983928968,0.053794,93073.0,93072.0,0.053794]
[1734983929566,0.053794,93072.0,93069.0,0.053795]
[1734983929772,0.106,93075.0,93050.0,0.13625842]
[1734983929972,0.3608,93064.0,93050.0,0.13625842]
[1734983930274,0.414599,93064.0,93063.0,0.053799]
[1734983932282,0.60593583,93064.0,93063.0,0.053799]
[1734983932479,0.60593583,93064.0,93063.0,0.057799]
[1734983932980,0.55213683,93064.0,93063.0,0.059799]
[1734983933278,0.3608,93064.0,93063.0,0.059799]
[1734983934265,0.106,93075.0,93063.0,0.059799]
[1734983934469,0.106,93075.0,93066.0,0.053797]
[1734983934667,0.19116957,93073.0,93072.0,0.053793]
[1734983935181,0.19116957,93073.0,93068.0,0.053796]
[1734983935383,0.053794,93072.0,93065.0,0.09087712]
[1734983935581,0.053794,93072.0,93069.0,0.053795]
[1734983936180,0.19116957,93073.0,93072.0,0.053794]
[1734983936484,0.106,93075.0,93074.0,0.053793]
[1734983938372,0.106,93075.0,93069.0,0.001]
[1734983938579,0.053795,93070.0,93069.0,0.001]
[1734983938776,0.053796,93069.0,93066.0,0.053797]
[1734983939080,0.414597,93067.0,93066.0,0.053797]
[1734983939468,0.3608,93067.0,93060.0,0.05479753]
[1734983939783,0.053799,93064.0,93063.0,0.053798]
[1734983940081,0.3608,93066.0,93050.0,0.09087712]
[1734983940582,0.053798,93065.0,93063.0,0.053799]
[1734983940985,0.053798,93065.0,93064.0,0.053798]
[1734983942985,0.056798,93065.0,93064.0,0.053798]
[1734983943182,0.003,93065.0,93064.0,0.053798]
[1734983943589,0.002,93065.0,93064.0,0.053798]
[1734983943786,0.003,93065.0,93064.0,0.053798]
[1734983944179,0.003,93065.0,93064.0,0.414598]
[1734983944382,0.002,93065.0,93064.0,0.414598]
[1734983944576,0.002,93065.0,93064.0,0.054798]
[1734983945081,0.22303117,93076.0,93064.0,0.001]
[1734983945289,0.22303117,93076.0,93072.0,0.053794]
[1734983945478,0.22303117,93076.0,93066.0,0.45167712]
[1734983945674,0.3608,93084.0,93066.0,0.45167712]
[1734983945885,0.3608,93084.0,93067.0,0.053796]
[1734983946187,0.3608,93084.0,93066.0,0.45307712]
[1734983946381,0.053789,93081.0,93073.0,0.053793]
[1734983946583,0.001,93076.0,93075.0,0.053792]
[1734983946776,0.22303117,93092.0,93091.0,0.053783]
[1734983948476,0.27680517,93107.0,93088.0,0.2179]
[1734983948676,0.053774,93106.0,93094.0,0.053781]
[1734983949182,0.22303117,93107.0,93095.0,0.05378]
[1734983950085,0.053775,93106.0,93095.0,0.05378]
[1734983950487,0.001,93097.0,93095.0,0.05378]
[1734983950690,0.001,93097.0,93088.0,0.2179]
[1734983950990,0.001,93097.0,93088.0,0.3608]
[1734983951392,0.001,93097.0,93095.0,0.05378]
[1734983951991,0.3608,93102.0,93088.0,0.3628]
[1734983952293,0.3608,93102.0,93099.0,0.053778]
[1734983952494,0.001,93105.0,93092.0,0.09087712]
[1734983952884,0.22303117,93106.0,93092.0,0.09087712]
[1734983953084,0.22303117,93106.0,93104.0,0.053775]
[1734983953293,0.22303117,93106.0,93105.0,0.3608]
[1734983953487,0.22303117,93106.0,93105.0,0.5746]
[1734983954393,0.3608,93122.0,93110.0,0.053772]
[1734983954581,0.053768,93118.0,93110.0,0.14464912]
[1734983954986,0.053766,93120.0,93111.0,0.053771]
[1734983955299,0.3608,93114.0,93111.0,0.053771]
[1734983956596,0.3608,93114.0,93110.0,0.001]
[1734983956597,0.053771,93112.0,93110.0,0.001]
[1734983956996,0.3648,93114.0,93110.0,0.001]
[1734983957197,0.3648,93114.0,93112.0,0.05377]
[1734983957991,0.3658,93114.0,93112.0,0.05377]
[1734983958489,0.3648,93114.0,93108.0,0.0338661]
[1734983958684,0.3618,93114.0,93112.0,0.001]
[1734983958891,0.001,93114.0,93112.0,0.001]
[1734983959087,0.001,93114.0,93113.0,0.05377]
[1734983959693,0.004,93114.0,93113.0,0.05377]
[1734983960392,0.005,93114.0,93113.0,0.05377]
[1734983960595,0.005,93114.0,93112.0,0.04328979]
[1734983960796,0.053773,93108.0,93097.0,0.053779]
[1734983961100,0.3608,93105.0,93097.0,0.04219635]
[1734983961403,0.414575,93105.0,93098.0,0.09087712]
[1734983961703,0.3608,93105.0,93098.0,0.09087712]
[1734983961909,0.053776,93104.0,93090.0,0.04265267]
[1734983962102,0.3608,93091.0,93088.0,0.053784]
[1734983962403,0.053784,93090.0,93087.0,0.053785]
[1734983962699,0.3608,93091.0,93090.0,0.053783]
[1734983962903,0.053785,93088.0,93086.0,0.044363]
[1734983963598,0.414583,93091.0,93087.0,0.053785]
[1734983963810,0.414583,93091.0,93087.0,0.054785]
[1734983965697,0.414583,93091.0,93088.0,0.053784]
[1734983967303,0.416583,93091.0,93088.0,0.053784]
[1734983967504,0.053784,93090.0,93088.0,0.053784]
[1734983967905,0.053784,93089.0,93088.0,0.053784]
[1734983968407,0.053784,93089.0,93086.0,0.023147]